[Event "European Online Club-ch-E 2021"]
[Site "Online"]
[Date "2021.03.27"]
[Round "9.7"]
[White "Valner, Uku"]
[Black "Garrido Dominguez, Jesus"]
[Result "1-0"]
[ECO "B07"]
[WhiteElo "2296"]
[BlackElo "2413"]
[Annotator "NA"]
[PlyCount "65"]
[EventDate "2021.03.27"]
[EventType "team-tourn"]
[EventCountry "NET"]
[SourceTitle "playchess.com"]
[Source "ChessBase"]
[SourceQuality "1"]
[TimeControl "900+5"]

1. e4 {[%emt 0:00:00]} d6 {[%emt 0:00:04]} 2. d4 {[%emt 0:00:03]} Nf6 {[%emt 0:00:02]} 3. Bd3 {[%emt 0:00:07]} e5 {[%emt 0:00:03]} 4. c3 {[%emt 0:00:08]} Nbd7 {[%emt 0:00:35]} 5. f4 {[%emt 0:00:29]} exd4 {[%emt 0:00:22]} 6. cxd4 {[%emt 0:00:03]} d5 {[%emt 0:00:02]} 7. e5 {[%emt 0:00:05]} Ne4 {[%emt 0:00:01]} 8. Nf3 {[%emt 0:00:11]} c5 {[%emt 0:00:08]} 9. Bxe4 {[%emt 0:02:25]} dxe4 {[%emt 0:00:03]} 10. Ng5 {[%emt 0:00:02]} cxd4 {[%emt 0:00:02]} 11. Qxd4 {[%emt 0:00:12]} Bc5 {[%emt 0:00:12]} 12. Qd5 {[%emt 0:01:38]} O-O {[%emt 0:00:12]} 13. Nc3 {[%emt 0:01:39]} Bb6 {[%emt 0:01:14]} 14. Nxf7 {[%emt 0:02:16]} Qe7 {[%emt 0:01:52]} 15. Nd6+ {[%emt 0:01:11]} Kh8 {[%emt 0:00:04]} 16. Ncxe4 {[%emt 0:00:12]} Qh4+ {[%emt 0:02:20]} 17. g3 {[%emt 0:00:19]} Qh5 {[%emt 0:00:02]} 18. Qd1 {[%emt 0:01:39]} Qg6 {[%emt 0:00:19]} 19. Qe2 {[%emt 0:00:36]} Nxe5 {[%emt 0:01:17]} 20. Nxc8 {[%emt 0:00:36]} Raxc8 {[%emt 0:00:15]} 21. fxe5 {[%emt 0:00:03]} Ba5+ {[%emt 0:02:25]} 22. Bd2 {[%emt 0:00:51]} Rc2 {[%emt 0:00:05]} 23. Rf1 {[%emt 0:01:15]} Rd8 {[%emt 0:01:02]} 24. Rd1 {[%emt 0:00:02]} h6 {[%emt 0:01:13]} 25. Qf3 {[%emt 0:00:35]} Rd4 {[%emt 0:00:21]} 26. Nc3 {[%emt 0:00:23]} Bxc3 {[%emt 0:00:46]} 27. bxc3 {[%emt 0:00:06]} Re4+ {[%emt 0:00:20]} 28. Kf2 {[%emt 0:00:03]} Rxe5 {[%emt 0:00:11]} 29. Kg1 {[%emt 0:00:03]} Rh5 {[%emt 0:00:24]} 30. Rf2 {[%emt 0:00:07]} Rc5 {[%emt 0:00:33]} 31. Qf8+ {[%emt 0:00:04]} Kh7 {[%emt 0:00:06]} 32. Qxc5 {[%emt 0:00:02]} Qh5 {[%emt 0:00:01]} 33. Qxh5 {[%emt 0:00:02]} 1-0

[Event "European Online Club-ch-E 2021"]
[Site "Online"]
[Date "2021.03.27"]
[Round "9.8"]
[White "Yashas, D.."]
[Black "Nestor, Kaarel"]
[Result "1/2-1/2"]
[ECO "A05"]
[WhiteElo "2296"]
[BlackElo "2134"]
[Annotator "NA"]
[PlyCount "114"]
[EventDate "2021.03.27"]
[EventType "team-tourn"]
[EventCountry "NET"]
[SourceTitle "playchess.com"]
[Source "ChessBase"]
[SourceQuality "1"]
[TimeControl "900+5"]

1. b3 {[%emt 0:00:00]} Nf6 {[%emt 0:00:05]} 2. Bb2 {[%emt 0:00:03]} g6 {[%emt 0:00:01]} 3. Nf3 {[%emt 0:00:38]} Bg7 {[%emt 0:00:14]} 4. g3 {[%emt 0:00:02]} b6 {[%emt 0:00:03]} 5. Bg2 {[%emt 0:00:05]} Bb7 {[%emt 0:00:01]} 6. O-O {[%emt 0:00:02]} d6 {[%emt 0:00:02]} 7. d4 {[%emt 0:00:04]} Nbd7 {[%emt 0:00:01]} 8. c4 {[%emt 0:00:02]} O-O {[%emt 0:00:10]} 9. d5 {[%emt 0:00:06]} c6 {[%emt 0:00:05]} 10. dxc6 {[%emt 0:00:20]} Bxc6 {[%emt 0:00:00]} 11. Nc3 {[%emt 0:00:06]} Qc8 {[%emt 0:00:20]} 12. Nd4 {[%emt 0:00:05]} Bxg2 {[%emt 0:00:03]} 13. Kxg2 {[%emt 0:00:02]} Qb7+ {[%emt 0:00:03]} 14. f3 {[%emt 0:00:02]} Rfd8 {[%emt 0:00:25]} 15. e4 {[%emt 0:00:03]} a6 {[%emt 0:00:02]} 16. Rc1 {[%emt 0:00:08]} Rac8 {[%emt 0:00:08]} 17. Rc2 {[%emt 0:00:03]} Ne5 {[%emt 0:00:31]} 18. Re1 {[%emt 0:00:11]} h5 {[%emt 0:00:03]} 19. Nd5 {[%emt 0:00:54]} e6 {[%emt 0:00:49]} 20. Nf4 {[%emt 0:00:29]} g5 {[%emt 0:00:38]} 21. Nfxe6 {[%emt 0:00:05]} fxe6 {[%emt 0:00:02]} 22. Nxe6 {[%emt 0:00:01]} Rd7 {[%emt 0:00:13]} 23. Nxg5 {[%emt 0:00:05]} Re8 {[%emt 0:00:23]} 24. h4 {[%emt 0:00:20]} b5 {[%emt 0:00:39]} 25. cxb5 {[%emt 0:00:30]} axb5 {[%emt 0:00:00]} 26. Rd2 {[%emt 0:00:02]} Qc6 {[%emt 0:01:01]} 27. Qa1 {[%emt 0:00:06]} Bh6 {[%emt 0:00:10]} 28. Rc1 {[%emt 0:00:06]} Qb7 {[%emt 0:00:07]} 29. Bxe5 {[%emt 0:01:17]} dxe5 {[%emt 0:00:21]} 30. Rcd1 {[%emt 0:00:02]} Rxd2+ {[%emt 0:00:35]} 31. Rxd2 {[%emt 0:00:02]} Nh7 {[%emt 0:00:02]} 32. Rd5 {[%emt 0:00:08]} Nxg5 {[%emt 0:00:43]} 33. hxg5 {[%emt 0:00:04]} Bg7 {[%emt 0:00:02]} 34. Qd1 {[%emt 0:00:34]} Rf8 {[%emt 0:00:18]} 35. Rd7 {[%emt 0:00:07]} Qa6 {[%emt 0:00:02]} 36. a4 {[%emt 0:00:50]} bxa4 {[%emt 0:00:19]} 37. bxa4 {[%emt 0:00:03]} Qg6 {[%emt 0:00:01]} 38. Qd2 {[%emt 0:00:15]} h4 {[%emt 0:00:15]} 39. gxh4 {[%emt 0:00:09]} Qh5 {[%emt 0:00:04]} 40. Qf2 {[%emt 0:01:47]} Rf4 {[%emt 0:00:04]} 41. Qg3 {[%emt 0:00:15]} Rxh4 {[%emt 0:00:21]} 42. g6 {[%emt 0:00:15]} Bf6 {[%emt 0:01:26]} 43. Rh7 {[%emt 0:02:06]} Qg5 {[%emt 0:01:03]} 44. Qxg5 {[%emt 0:01:53]} Bxg5 {[%emt 0:00:00]} 45. Rxh4 {[%emt 0:01:16]} Bxh4 {[%emt 0:00:00]} 46. a5 {[%emt 0:00:02]} Bd8 {[%emt 0:00:07]} 47. a6 {[%emt 0:00:16]} Bb6 {[%emt 0:00:02]} 48. Kg3 {[%emt 0:00:03]} Kg7 {[%emt 0:00:03]} 49. f4 {[%emt 0:00:01]} exf4+ {[%emt 0:00:05]} 50. Kxf4 {[%emt 0:00:03]} Kxg6 {[%emt 0:00:00]} 51. Ke5 {[%emt 0:00:02]} Kf7 {[%emt 0:00:02]} 52. Kd6 {[%emt 0:00:02]} Ba7 {[%emt 0:00:20]} 53. Kd7 {[%emt 0:00:08]} Kf6 {[%emt 0:00:02]} 54. Kd6 {[%emt 0:00:02]} Kf7 {[%emt 0:00:01]} 55. e5 {[%emt 0:00:04]} Ke8 {[%emt 0:00:05]} 56. Ke6 {[%emt 0:00:09]} Bg1 {[%emt 0:00:04]} 57. Kd6 {[%emt 0:00:06]} Ba7 {[%emt 0:00:01]} 1/2-1/2

[Event "European Online Club-ch-E 2021"]
[Site "Online"]
[Date "2021.03.27"]
[Round "9.9"]
[White "Dedebas, Emre Emin"]
[Black "Mikhalevski, Victor"]
[Result "0-1"]
[ECO "D02"]
[WhiteElo "2335"]
[BlackElo "2552"]
[Annotator "ChessBase"]
[PlyCount "32"]
[EventDate "2021.03.27"]
[EventType "team-tourn"]
[EventCountry "NET"]
[SourceTitle "playchess.com"]
[Source "ChessBase"]
[SourceQuality "1"]
[TimeControl "900+5"]

1. d4 {[%emt 0:00:00]} Nf6 {[%emt 0:00:04]} 2. Bf4 {[%emt 0:00:02]} d5 {[%emt 0:00:03]} 3. e3 {[%emt 0:00:05]} Bg4 {[%emt 0:00:04]} 4. Nf3 {[%emt 0:00:43]} e6 {[%emt 0:00:03]} 5. Nbd2 {[%emt 0:00:08]} Bd6 {[%emt 0:00:03]} 6. h3 {[%emt 0:00:21]} Bh5 {[%emt 0:00:03]} 7. Bxd6 {[%emt 0:00:48]} cxd6 {[%emt 0:00:05]} 8. c4 {[%emt 0:00:09]} O-O {[%emt 0:00:09]} 9. Be2 {[%emt 0:00:04]} Nc6 {[%emt 0:00:08]} 10. O-O {[%emt 0:00:04]} Rc8 {[%emt 0:00:11]} 11. Rc1 {[%emt 0:00:07]} dxc4 {[%emt 0:00:21]} 12. Nxc4 {[%emt 0:00:03]} b5 {[%emt 0:00:08]} 13. Ncd2 {[%emt 0:00:08]} Qb6 {[%emt 0:00:05]} 14. a3 {[%emt 0:01:26]} a6 {[%emt 0:00:47]} 15. Ne1 {[%emt 0:00:23]} Bxe2 {[%emt 0:00:18]} 16. Qxe2 {[%emt 0:00:03]} Nxd4 {[%emt 0:00:03]} 0-1

[Event "European Online Club-ch-E 2021"]
[Site "Online"]
[Date "2021.03.27"]
[Round "9.10"]
[White "Roiz, Michael"]
[Black "Angun, Batu"]
[Result "0-1"]
[ECO "D00"]
[WhiteElo "2579"]
[BlackElo "2326"]
[Annotator "ChessBase"]
[PlyCount "70"]
[EventDate "2021.03.27"]
[EventType "team-tourn"]
[EventCountry "NET"]
[SourceTitle "playchess.com"]
[Source "ChessBase"]
[SourceQuality "1"]
[TimeControl "900+5"]

1. d4 {[%emt 0:00:00]} Nf6 {[%emt 0:00:08]} 2. Nf3 {[%emt 0:00:02]} g6 {[%emt 0:00:09]} 3. Nc3 {[%emt 0:00:04]} d5 {[%emt 0:00:05]} 4. Bf4 {[%emt 0:00:02]} Bg7 {[%emt 0:00:05]} 5. e3 {[%emt 0:00:02]} O-O {[%emt 0:00:06]} 6. Nb5 {[%emt 0:00:07]} Na6 {[%emt 0:00:05]} 7. h3 {[%emt 0:00:02]} c5 {[%emt 0:00:10]} 8. c3 {[%emt 0:00:15]} Ne4 {[%emt 0:00:59]} 9. Be2 {[%emt 0:00:21]} Bd7 {[%emt 0:01:15]} 10. a4 {[%emt 0:00:05]} c4 {[%emt 0:00:24]} 11. O-O {[%emt 0:02:35]} Bxb5 {[%emt 0:01:16]} 12. axb5 {[%emt 0:00:01]} Nc7 {[%emt 0:00:01]} 13. Qa4 {[%emt 0:00:31]} Ne6 {[%emt 0:01:30]} 14. Bh2 {[%emt 0:00:18]} a6 {[%emt 0:00:31]} 15. bxa6 {[%emt 0:01:03]} Rxa6 {[%emt 0:00:05]} 16. Qc2 {[%emt 0:00:01]} Qa8 {[%emt 0:00:22]} 17. Rxa6 {[%emt 0:00:20]} Qxa6 {[%emt 0:00:04]} 18. Nd2 {[%emt 0:00:35]} Nxd2 {[%emt 0:01:07]} 19. Qxd2 {[%emt 0:00:01]} Ra8 {[%emt 0:00:13]} 20. Re1 {[%emt 0:01:37]} Qb5 {[%emt 0:00:40]} 21. b4 {[%emt 0:00:45]} Ra3 {[%emt 0:01:22]} 22. Qb2 {[%emt 0:01:27]} Qa4 {[%emt 0:00:48]} 23. Bf3 {[%emt 0:00:02]} Qb3 {[%emt 0:01:32]} 24. Qxb3 {[%emt 0:00:27]} cxb3 {[%emt 0:00:03]} 25. Bxd5 {[%emt 0:00:13]} Ng5 {[%emt 0:00:04]} 26. Rb1 {[%emt 0:05:13]} b2 {[%emt 0:00:11]} 27. Bc4 {[%emt 0:00:29]} Rxc3 {[%emt 0:00:36]} 28. Bf1 {[%emt 0:00:05]} Rc2 {[%emt 0:00:32]} 29. f3 {[%emt 0:00:01]} Ne6 {[%emt 0:00:15]} 30. Bg3 {[%emt 0:00:33]} Bh6 {[%emt 0:01:22]} 31. f4 {[%emt 0:00:03]} Nc7 {[%emt 0:00:03]} 32. Bd3 {[%emt 0:00:09]} Rc3 {[%emt 0:00:44]} 33. Bf1 {[%emt 0:00:09]} Rxe3 {[%emt 0:00:14]} 34. Bh4 {[%emt 0:00:02]} Rb3 {[%emt 0:00:07]} 35. Bxe7 {[%emt 0:00:02]} Bxf4 {[%emt 0:00:11]} 0-1

[Event "European Online Club-ch-E 2021"]
[Site "Online"]
[Date "2021.03.27"]
[Round "9.11"]
[White "Ozenir, Ekin Baris"]
[Black "Postny, Evgeny"]
[Result "0-1"]
[ECO "D10"]
[WhiteElo "2309"]
[BlackElo "2605"]
[Annotator "ChessBase"]
[PlyCount "78"]
[EventDate "2021.03.27"]
[EventType "team-tourn"]
[EventCountry "NET"]
[SourceTitle "playchess.com"]
[Source "ChessBase"]
[SourceQuality "1"]
[TimeControl "900+5"]

1. d4 {[%emt 0:00:00]} d5 {[%emt 0:00:04]} 2. c4 {[%emt 0:00:02]} c6 {[%emt 0:00:02]} 3. cxd5 {[%emt 0:00:02]} cxd5 {[%emt 0:00:02]} 4. Bf4 {[%emt 0:00:01]} Nc6 {[%emt 0:00:04]} 5. e3 {[%emt 0:00:02]} Nf6 {[%emt 0:00:04]} 6. Nc3 {[%emt 0:00:03]} a6 {[%emt 0:00:04]} 7. Bd3 {[%emt 0:00:16]} Bg4 {[%emt 0:00:03]} 8. Nge2 {[%emt 0:00:02]} e6 {[%emt 0:00:03]} 9. Rc1 {[%emt 0:00:03]} Be7 {[%emt 0:00:05]} 10. O-O {[%emt 0:01:04]} O-O {[%emt 0:00:03]} 11. Qd2 {[%emt 0:00:19]} Bh5 {[%emt 0:00:26]} 12. Bg5 {[%emt 0:01:22]} Bg6 {[%emt 0:00:13]} 13. Bxg6 {[%emt 0:00:17]} hxg6 {[%emt 0:00:02]} 14. Bxf6 {[%emt 0:00:04]} gxf6 {[%emt 0:00:06]} 15. e4 {[%emt 0:00:48]} dxe4 {[%emt 0:00:20]} 16. Nxe4 {[%emt 0:00:04]} f5 {[%emt 0:01:05]} 17. Nc5 {[%emt 0:00:44]} Bg5 {[%emt 0:00:40]} 18. f4 {[%emt 0:01:40]} Bf6 {[%emt 0:00:04]} 19. Rfd1 {[%emt 0:00:47]} Qe7 {[%emt 0:00:37]} 20. Qe3 {[%emt 0:01:32]} Rfd8 {[%emt 0:00:38]} 21. a3 {[%emt 0:01:53]} Rac8 {[%emt 0:00:27]} 22. b4 {[%emt 0:00:15]} b6 {[%emt 0:00:25]} 23. Nd3 {[%emt 0:01:20]} Nxd4 {[%emt 0:00:34]} 24. Rxc8 {[%emt 0:00:25]} Nxe2+ {[%emt 0:00:04]} 25. Qxe2 {[%emt 0:00:01]} Rxc8 {[%emt 0:00:03]} 26. Ne5 {[%emt 0:00:06]} Rd8 {[%emt 0:01:29]} 27. h3 {[%emt 0:01:22]} Rxd1+ {[%emt 0:00:56]} 28. Qxd1 {[%emt 0:00:03]} Qc7 {[%emt 0:00:13]} 29. Qf3 {[%emt 0:01:09]} Bxe5 {[%emt 0:02:32]} 30. fxe5 {[%emt 0:00:04]} Qc1+ {[%emt 0:00:05]} 31. Kh2 {[%emt 0:00:08]} Kg7 {[%emt 0:00:02]} 32. Qf2 {[%emt 0:00:35]} Qxa3 {[%emt 0:00:17]} 33. Qh4 {[%emt 0:00:52]} Qd3 {[%emt 0:01:14]} 34. Qf6+ {[%emt 0:00:12]} Kg8 {[%emt 0:00:02]} 35. Qe7 {[%emt 0:00:05]} Qd4 {[%emt 0:00:14]} 36. Qc7 {[%emt 0:00:07]} Kg7 {[%emt 0:00:24]} 37. Kh1 {[%emt 0:00:09]} Qxb4 {[%emt 0:00:08]} 38. Qd8 {[%emt 0:00:02]} Qe1+ {[%emt 0:00:02]} 39. Kh2 {[%emt 0:00:03]} Qxe5+ {[%emt 0:00:02]} 0-1

[Event "European Online Club-ch-E 2021"]
[Site "Online"]
[Date "2021.03.27"]
[Round "9.12"]
[White "Huzman, Alexander"]
[Black "Dolgun, Can"]
[Result "1-0"]
[ECO "A49"]
[WhiteElo "2561"]
[BlackElo "2133"]
[Annotator "ChessBase"]
[PlyCount "121"]
[EventDate "2021.03.27"]
[EventType "team-tourn"]
[EventCountry "NET"]
[SourceTitle "playchess.com"]
[Source "ChessBase"]
[SourceQuality "1"]
[TimeControl "900+5"]

1. Nf3 {[%emt 0:00:00]} Nf6 {[%emt 0:00:02]} 2. g3 {[%emt 0:00:06]} g6 {[%emt 0:00:02]} 3. Bg2 {[%emt 0:00:02]} Bg7 {[%emt 0:00:02]} 4. O-O {[%emt 0:00:03]} O-O {[%emt 0:00:02]} 5. d4 {[%emt 0:00:02]} d6 {[%emt 0:00:01]} 6. b3 {[%emt 0:00:02]} Nc6 {[%emt 0:00:14]} 7. Bb2 {[%emt 0:00:08]} e5 {[%emt 0:00:08]} 8. dxe5 {[%emt 0:00:04]} Ng4 {[%emt 0:00:06]} 9. Qc1 {[%emt 0:00:18]} Ngxe5 {[%emt 0:00:31]} 10. Nxe5 {[%emt 0:00:04]} Nxe5 {[%emt 0:00:06]} 11. c4 {[%emt 0:00:02]} Re8 {[%emt 0:00:34]} 12. Nc3 {[%emt 0:00:07]} Rb8 {[%emt 0:00:31]} 13. Rd1 {[%emt 0:00:09]} Bd7 {[%emt 0:00:13]} 14. Qd2 {[%emt 0:00:07]} Bc6 {[%emt 0:00:25]} 15. Nd5 {[%emt 0:00:17]} Bxd5 {[%emt 0:00:47]} 16. cxd5 {[%emt 0:00:07]} Qf6 {[%emt 0:00:20]} 17. Rac1 {[%emt 0:01:02]} Re7 {[%emt 0:00:35]} 18. Bd4 {[%emt 0:02:01]} Qf5 {[%emt 0:01:21]} 19. Bxa7 {[%emt 0:00:17]} Rbe8 {[%emt 0:01:28]} 20. Bd4 {[%emt 0:00:09]} Ng4 {[%emt 0:02:21]} 21. e4 {[%emt 0:00:09]} Qh5 {[%emt 0:02:14]} 22. h3 {[%emt 0:00:08]} Ne5 {[%emt 0:00:09]} 23. Bxe5 {[%emt 0:00:47]} Qxe5 {[%emt 0:00:19]} 24. Rc4 {[%emt 0:00:04]} f5 {[%emt 0:01:18]} 25. Rdc1 {[%emt 0:00:11]} fxe4 {[%emt 0:00:27]} 26. Rxe4 {[%emt 0:00:13]} Qb2 {[%emt 0:00:14]} 27. Qxb2 {[%emt 0:01:13]} Bxb2 {[%emt 0:00:03]} 28. Rxe7 {[%emt 0:00:01]} Rxe7 {[%emt 0:00:01]} 29. Rc2 {[%emt 0:00:01]} Bd4 {[%emt 0:00:05]} 30. Kf1 {[%emt 0:00:05]} Kg7 {[%emt 0:00:03]} 31. Rc4 {[%emt 0:00:13]} Bb6 {[%emt 0:00:59]} 32. Be4 {[%emt 0:00:22]} Kf6 {[%emt 0:00:09]} 33. a4 {[%emt 0:00:09]} h6 {[%emt 0:00:12]} 34. Ke2 {[%emt 0:00:45]} c5 {[%emt 0:00:58]} 35. f4 {[%emt 0:00:35]} Ba5 {[%emt 0:00:08]} 36. Kf3 {[%emt 0:00:02]} g5 {[%emt 0:00:14]} 37. Rc1 {[%emt 0:00:26]} gxf4 {[%emt 0:00:05]} 38. gxf4 {[%emt 0:00:08]} Rg7 {[%emt 0:00:07]} 39. h4 {[%emt 0:00:41]} Bd2 {[%emt 0:00:13]} 40. Rd1 {[%emt 0:00:07]} Bc3 {[%emt 0:00:08]} 41. h5 {[%emt 0:00:02]} b6 {[%emt 0:00:17]} 42. Bc2 {[%emt 0:00:31]} Bd4 {[%emt 0:00:05]} 43. b4 {[%emt 0:00:28]} Re7 {[%emt 0:00:10]} 44. Be4 {[%emt 0:00:08]} Bc3 {[%emt 0:00:04]} 45. bxc5 {[%emt 0:00:10]} bxc5 {[%emt 0:00:02]} 46. Rg1 {[%emt 0:00:03]} Rg7 {[%emt 0:00:02]} 47. Rg6+ {[%emt 0:00:16]} Rxg6 {[%emt 0:00:04]} 48. Bxg6 {[%emt 0:00:02]} Bb4 {[%emt 0:00:06]} 49. Ke4 {[%emt 0:00:05]} Ba5 {[%emt 0:00:11]} 50. Kd3 {[%emt 0:00:03]} Ke7 {[%emt 0:00:06]} 51. Kc4 {[%emt 0:00:03]} Kd7 {[%emt 0:00:04]} 52. f5 {[%emt 0:00:08]} Ke7 {[%emt 0:00:05]} 53. Kb5 {[%emt 0:00:06]} Bc7 {[%emt 0:00:06]} 54. a5 {[%emt 0:00:10]} c4 {[%emt 0:00:02]} 55. a6 {[%emt 0:00:06]} Bb8 {[%emt 0:00:03]} 56. Kxc4 {[%emt 0:00:03]} Ba7 {[%emt 0:00:04]} 57. Kb5 {[%emt 0:00:03]} Kd7 {[%emt 0:00:04]} 58. f6 {[%emt 0:00:02]} Be3 {[%emt 0:00:06]} 59. f7 {[%emt 0:00:03]} Ke7 {[%emt 0:00:03]} 60. Kc6 {[%emt 0:00:03]} Bc5 {[%emt 0:00:05]} 61. Kb7 {[%emt 0:00:02]} 1-0

[Event "European Online Club-ch-E 2021"]
[Site "Online"]
[Date "2021.03.27"]
[Round "9.13"]
[White "Pavlidis, Antonios"]
[Black "Oparin, Grigoriy"]
[Result "1-0"]
[ECO "C47"]
[WhiteElo "2536"]
[BlackElo "2652"]
[Annotator "ChessBase"]
[PlyCount "75"]
[EventDate "2021.03.27"]
[EventType "team-tourn"]
[EventCountry "NET"]
[SourceTitle "playchess.com"]
[Source "ChessBase"]
[SourceQuality "1"]
[TimeControl "900+5"]

1. e4 {[%emt 0:00:00]} e5 {[%emt 0:00:02]} 2. Nc3 {[%emt 0:00:03]} Nc6 {[%emt 0:00:02]} 3. Nf3 {[%emt 0:00:03]} Nf6 {[%emt 0:00:02]} 4. d4 {[%emt 0:00:01]} exd4 {[%emt 0:00:01]} 5. Nxd4 {[%emt 0:00:02]} Bb4 {[%emt 0:00:02]} 6. Nxc6 {[%emt 0:00:02]} bxc6 {[%emt 0:00:00]} 7. Bd3 {[%emt 0:00:02]} O-O {[%emt 0:00:01]} 8. O-O {[%emt 0:00:02]} d5 {[%emt 0:00:02]} 9. Bd2 {[%emt 0:00:01]} Rb8 {[%emt 0:00:07]} 10. exd5 {[%emt 0:00:05]} cxd5 {[%emt 0:00:05]} 11. h3 {[%emt 0:00:03]} d4 {[%emt 0:00:58]} 12. Nb5 {[%emt 0:00:30]} Bxd2 {[%emt 0:00:02]} 13. Qxd2 {[%emt 0:00:01]} c5 {[%emt 0:00:01]} 14. Nxa7 {[%emt 0:01:27]} Bb7 {[%emt 0:01:52]} 15. Qg5 {[%emt 0:00:05]} Qb6 {[%emt 0:02:54]} 16. Nb5 {[%emt 0:00:13]} h6 {[%emt 0:00:01]} 17. Qg3 {[%emt 0:00:38]} Qc6 {[%emt 0:00:06]} 18. Nd6 {[%emt 0:02:08]} Nh5 {[%emt 0:00:40]} 19. Qh2 {[%emt 0:00:30]} Nf4 {[%emt 0:01:58]} 20. Nxb7 {[%emt 0:00:46]} Nxd3 {[%emt 0:00:01]} 21. cxd3 {[%emt 0:00:02]} Rxb7 {[%emt 0:00:03]} 22. b3 {[%emt 0:00:03]} Ra8 {[%emt 0:00:12]} 23. Rfc1 {[%emt 0:00:24]} Qb5 {[%emt 0:00:48]} 24. Qg3 {[%emt 0:00:10]} Ra6 {[%emt 0:00:16]} 25. Rc2 {[%emt 0:00:48]} Rg6 {[%emt 0:00:13]} 26. Qf3 {[%emt 0:00:03]} Rf6 {[%emt 0:00:04]} 27. Qe4 {[%emt 0:00:15]} Re6 {[%emt 0:00:37]} 28. Qf5 {[%emt 0:00:32]} g6 {[%emt 0:00:06]} 29. Qxc5 {[%emt 0:01:08]} Qxd3 {[%emt 0:00:02]} 30. Rc4 {[%emt 0:00:02]} Rb8 {[%emt 0:01:08]} 31. Qxd4 {[%emt 0:00:10]} Qe2 {[%emt 0:00:03]} 32. Qf4 {[%emt 0:00:34]} Rbe8 {[%emt 0:00:16]} 33. Qxh6 {[%emt 0:01:13]} Qb2 {[%emt 0:00:19]} 34. Rf1 {[%emt 0:00:55]} Re1 {[%emt 0:00:07]} 35. Rxe1 {[%emt 0:00:06]} Rxe1+ {[%emt 0:00:02]} 36. Kh2 {[%emt 0:00:01]} Qe5+ {[%emt 0:00:20]} 37. Qf4 {[%emt 0:00:09]} Qa1 {[%emt 0:00:02]} 38. Rc7 {[%emt 0:00:39]} 1-0

[Event "European Online Club-ch-E 2021"]
[Site "Online"]
[Date "2021.03.27"]
[Round "9.14"]
[White "Moussard, Jules"]
[Black "Kanakaris, Georgios"]
[Result "1-0"]
[ECO "B72"]
[WhiteElo "2635"]
[BlackElo "2400"]
[Annotator "ChessBase"]
[PlyCount "65"]
[EventDate "2021.03.27"]
[EventType "team-tourn"]
[EventCountry "NET"]
[SourceTitle "playchess.com"]
[Source "ChessBase"]
[SourceQuality "1"]
[TimeControl "900+5"]

1. e4 {[%emt 0:00:00]} c5 {[%emt 0:00:03]} 2. Nf3 {[%emt 0:00:03]} d6 {[%emt 0:00:02]} 3. d4 {[%emt 0:00:01]} cxd4 {[%emt 0:00:00]} 4. Nxd4 {[%emt 0:00:04]} Nf6 {[%emt 0:00:02]} 5. Nc3 {[%emt 0:00:02]} a6 {[%emt 0:00:02]} 6. Bd3 {[%emt 0:00:02]} g6 {[%emt 0:00:10]} 7. Be3 {[%emt 0:00:04]} Bg7 {[%emt 0:00:00]} 8. f3 {[%emt 0:00:02]} Nc6 {[%emt 0:00:09]} 9. Qd2 {[%emt 0:00:02]} Bd7 {[%emt 0:00:08]} 10. O-O-O {[%emt 0:00:16]} b5 {[%emt 0:00:22]} 11. Nxc6 {[%emt 0:01:40]} Bxc6 {[%emt 0:00:00]} 12. Bh6 {[%emt 0:00:01]} Bxh6 {[%emt 0:00:13]} 13. Qxh6 {[%emt 0:00:01]} Qa5 {[%emt 0:00:27]} 14. Kb1 {[%emt 0:00:09]} b4 {[%emt 0:01:40]} 15. Ne2 {[%emt 0:00:04]} Qh5 {[%emt 0:00:38]} 16. Qxh5 {[%emt 0:01:29]} Nxh5 {[%emt 0:00:00]} 17. Rc1 {[%emt 0:00:01]} Bb7 {[%emt 0:03:28]} 18. c3 {[%emt 0:00:03]} bxc3 {[%emt 0:00:07]} 19. Rxc3 {[%emt 0:00:03]} Kd7 {[%emt 0:00:04]} 20. Rb3 {[%emt 0:00:58]} Rab8 {[%emt 0:00:55]} 21. Rd1 {[%emt 0:00:58]} f6 {[%emt 0:02:03]} 22. Rc1 {[%emt 0:01:49]} Ng7 {[%emt 0:02:14]} 23. Ra3 {[%emt 0:00:53]} Ra8 {[%emt 0:00:12]} 24. Nd4 {[%emt 0:00:23]} Rhc8 {[%emt 0:00:32]} 25. Rxc8 {[%emt 0:00:22]} Bxc8 {[%emt 0:00:05]} 26. Bb5+ {[%emt 0:00:12]} Kc7 {[%emt 0:00:14]} 27. Rc3+ {[%emt 0:01:30]} Kb6 {[%emt 0:00:03]} 28. Bc6 {[%emt 0:00:09]} Rb8 {[%emt 0:00:22]} 29. Bd5 {[%emt 0:00:02]} Bb7 {[%emt 0:00:25]} 30. Nc6 {[%emt 0:00:06]} Rc8 {[%emt 0:02:35]} 31. Rb3+ {[%emt 0:00:03]} Kc7 {[%emt 0:00:02]} 32. Nxe7 {[%emt 0:00:05]} Bxd5 {[%emt 0:00:01]} 33. Rc3+ {[%emt 0:00:04]} 1-0

[Event "European Online Club-ch-E 2021"]
[Site "Online"]
[Date "2021.03.27"]
[Round "9.15"]
[White "Stefanou, Dimitrios"]
[Black "Gozzoli, Yannick"]
[Result "1-0"]
[ECO "C46"]
[WhiteElo "2099"]
[BlackElo "2600"]
[Annotator "ChessBase"]
[PlyCount "77"]
[EventDate "2021.03.27"]
[EventType "team-tourn"]
[EventCountry "NET"]
[SourceTitle "playchess.com"]
[Source "ChessBase"]
[SourceQuality "1"]
[TimeControl "900+5"]

1. e4 {[%emt 0:00:00]} e5 {[%emt 0:00:08]} 2. Nf3 {[%emt 0:00:04]} Nc6 {[%emt 0:00:02]} 3. Nc3 {[%emt 0:00:02]} g6 {[%emt 0:01:12]} 4. d4 {[%emt 0:00:51]} exd4 {[%emt 0:00:02]} 5. Nxd4 {[%emt 0:00:32]} Bg7 {[%emt 0:00:02]} 6. Nxc6 {[%emt 0:00:07]} bxc6 {[%emt 0:00:22]} 7. Bd3 {[%emt 0:00:24]} Ne7 {[%emt 0:00:24]} 8. O-O {[%emt 0:00:05]} O-O {[%emt 0:00:12]} 9. Bg5 {[%emt 0:01:37]} h6 {[%emt 0:00:20]} 10. Bd2 {[%emt 0:02:46]} d6 {[%emt 0:01:03]} 11. f4 {[%emt 0:01:45]} f5 {[%emt 0:00:16]} 12. Qf3 {[%emt 0:00:52]} Rb8 {[%emt 0:00:16]} 13. Rab1 {[%emt 0:00:57]} d5 {[%emt 0:01:07]} 14. e5 {[%emt 0:00:56]} c5 {[%emt 0:02:47]} 15. Na4 {[%emt 0:01:15]} c4 {[%emt 0:00:04]} 16. Be2 {[%emt 0:00:05]} c6 {[%emt 0:00:22]} 17. Be3 {[%emt 0:00:26]} Qa5 {[%emt 0:00:19]} 18. b3 {[%emt 0:00:11]} Rb5 {[%emt 0:01:09]} 19. Qf2 {[%emt 0:00:16]} Re8 {[%emt 0:00:50]} 20. Nc5 {[%emt 0:00:43]} Rb8 {[%emt 0:00:27]} 21. a4 {[%emt 0:00:21]} cxb3 {[%emt 0:00:13]} 22. cxb3 {[%emt 0:00:03]} Kh7 {[%emt 0:00:06]} 23. Bd4 {[%emt 0:00:05]} Qc7 {[%emt 0:00:05]} 24. Rbc1 {[%emt 0:00:03]} a5 {[%emt 0:00:10]} 25. Kh1 {[%emt 0:00:02]} Ng8 {[%emt 0:00:09]} 26. Bd3 {[%emt 0:00:04]} h5 {[%emt 0:00:03]} 27. Rc3 {[%emt 0:00:28]} Rb4 {[%emt 0:00:14]} 28. Be2 {[%emt 0:00:16]} Bf8 {[%emt 0:00:40]} 29. Nd3 {[%emt 0:00:05]} Rb8 {[%emt 0:00:11]} 30. Rfc1 {[%emt 0:00:01]} Bd7 {[%emt 0:00:01]} 31. Bc5 {[%emt 0:00:03]} Nh6 {[%emt 0:00:21]} 32. Bxf8 {[%emt 0:00:05]} Rxf8 {[%emt 0:00:01]} 33. e6 {[%emt 0:00:29]} Be8 {[%emt 0:00:10]} 34. Ne5 {[%emt 0:00:03]} Qe7 {[%emt 0:00:23]} 35. Nxc6 {[%emt 0:00:12]} Bxc6 {[%emt 0:00:20]} 36. Rxc6 {[%emt 0:00:00]} Qf6 {[%emt 0:00:15]} 37. Qa7+ {[%emt 0:00:24]} Kg8 {[%emt 0:00:09]} 38. e7 {[%emt 0:00:01]} Rfe8 {[%emt 0:00:09]} 39. Rxf6 {[%emt 0:00:03]} 1-0